Cogmind - Beta 11 X9 @@@ ROGUE MODE // 2022.02.02 @ 02:48:18 Player: gammafunk Result: Self-destructed Performance ------------- Evolutions (3) 1500 Regions Visited (6) 1200 Robots Destroyed (129) 645 Value Destroyed (3962) 3962 Prototype IDs (13) 260 Alien Tech Used (0) 0 Bonus (191) 191 TOTAL SCORE: 7758 Bonus ------- High Alert Combat Kills 11 Follower Combat Kills 180 Cogmind --------- Core Integrity 537/700 Matter 155/300 Energy 280/280 System Corruption 4% Temperature Cool (0) Movement Treading (164) Location -7/Factory Parts ------- > --- POWER (1) -------- Heavy Ion Engine > --- PROPULSION (5) --- Light Treads Armored Treads Armored Treads Medium Treads Medium Treads > --- UTILITY (3) ------ Huge Storage Unit Improved Signal Interpreter Improved Medium Armor Plating > --- WEAPON (4) ------- Minigun Gauss Rifle Flak Gun Heavy Flail > --- INVENTORY (25) --- Light Treads Light Treads Light Treads Armored Treads Advanced Treads Cooling System High-capacity Matter Pod (200) Improved Sensor Array Improved Sensor Array Improved Signal Interpreter Matter Filter Transmission Jammer Improved Medium Armor Plating Hacking Suite Minigun Minigun Gauss Rifle Flak Gun Shock Bomb Launcher Advanced EMP Blaster Improved Grenade Launcher Heavy Missile Launcher Peak State ------------ > --- POWER ------------ Improved Deuterium Engine > --- PROPULSION ------- Light Treads Armored Treads Armored Treads Advanced Treads Medium Treads > --- UTILITY ---------- Huge Storage Unit Improved Signal Interpreter Improved Medium Armor Plating > --- WEAPON ----------- Minigun Gauss Rifle Flak Gun Flak Gun > --- INVENTORY -------- Heavy Ion Engine Light Treads Light Treads Light Treads Light Treads Advanced Treads Medium Treads Cooling System High-capacity Matter Pod Improved Sensor Array Improved Sensor Array Improved Signal Interpreter Matter Filter Transmission Jammer Improved Medium Armor Plating Hacking Suite Minigun Minigun Gauss Rifle Gauss Rifle Shock Bomb Launcher Advanced EMP Blaster Improved Grenade Launcher Heavy Missile Launcher Heavy Flail [Rating: 48] Favorites ----------- Power Ion Engine Engine Ion Engine Power Core Nuclear Core Propulsion Light Treads Treads Light Treads Utility Light Armor Plating Device Transmission Jammer Storage Huge Storage Unit Processor Improved Signal Interpreter Protection Light Armor Plating Weapon Light Assault Rifle Energy Gun Medium Laser Ballistic Gun Light Assault Rifle Ballistic Cannon Improved Light Cannon Launcher Grenade Launcher Impact Weapon Heavy Flail Build | -11 -10 -10 -9 -9 -8 -7 ------- Run | Scr Mat Min Mat Min Mat Fac Slots Evolved 6 | . . . 2 . 2 2 Power . | . . . . . . . Propulsion 3 | . . . 1 . 1 1 Utility 1 | . . . . . 1 . Weapon 2 | . . . 1 . . 1 Parts Attached 122 | 7 16 . 22 4 47 26 Power 12 | 1 2 . 5 . 2 2 Engine 11 | 1 2 . 5 . 1 2 Core 1 | . . . . . 1 . Reactor . | . . . . . . . Propulsion 32 | 2 3 . 4 2 13 8 Treads 32 | 2 3 . 4 2 13 8 Leg . | . . . . . . . Wheel . | . . . . . . . Hover . | . . . . . . . Flight . | . . . . . . . Utility 27 | 2 4 . 3 1 10 7 Device 6 | 1 . . . . 2 3 Storage 4 | 1 1 . 1 . 1 . Processor 3 | . . . . . 2 1 Hackware . | . . . . . . . Protection 14 | . 3 . 2 1 5 3 Artifact . | . . . . . . . Weapon 51 | 2 7 . 10 1 22 9 Energy Gun 5 | 1 1 . 3 . . . Energy Cannon . | . . . . . . . Ballistic Gun 39 | 1 6 . 5 1 18 8 Ballistic Cannon 2 | . . . 2 . . . Launcher 1 | . . . . . 1 . Special Weapon . | . . . . . . . Impact Weapon 4 | . . . . . 3 1 Slashing Weapon . | . . . . . . . Piercing Weapon . | . . . . . . . Special Melee Weapon . | . . . . . . . Unidentified Prototypes 1 | . . . 1 . . . Parts Lost 11 | . 1 . 1 1 4 4 Power 1 | . . . . . . 1 Propulsion 5 | . . . . . 3 2 Utility 1 | . . . . 1 . . Weapon 4 | . 1 . 1 . 1 1 Highest Loss Streak 2 | . 1 . 1 1 1 2 Average Slot Usage (%) 99 | . 99 100 98 99 99 98 Engine 10 | . 14 14 11 11 8 7 Treads 33 | . 28 28 33 33 35 37 Device 1 | . 2 . . . 2 2 Storage 10 | . 14 14 11 11 9 7 Processor 2 | . . . . . 5 7 Protection 9 | . 11 14 11 10 9 4 Ballistic Gun 25 | . 25 28 22 22 25 28 Ballistic Cannon 2 | . . . 5 11 . . Naked Turns . | . . . . . . . Heaviest Build 112 | 14 31 31 60 60 107 112 Greatest Support 116 | 40 40 40 66 66 84 116 Greatest Overweight (x) 1 | . . . . . 1 1 Average Overweight (x) . | . . . . . . . Largest Inventory Capacity 25 | 8 15 15 20 20 25 25 Average Capacity 20 | 7 14 15 19 20 23 25 Most Carried 25 | 4 15 15 20 20 25 25 Average Carried 20 | 2 13 14 19 19 22 24 Final Capacity 25 | 8 15 15 20 20 25 25 Final Carried 25 | 4 15 15 20 20 25 22 Class Distribution -------------------- 28% | Tank 22% | Mutant 16% | Scavenger-Tank 15% | Scavenger-Gunner 6% | Commander-Mutant 6% | Scavenger-Skirmisher 3% | Scavenger-Mutant Dominant Class ---------------- Mutant | -10/Materials Commander-Mutant | -10/Mines Tank | -9/Materials Tank | -9/Mines Scavenger-Gunner | -8/Materials Scavenger-Skirmisher | -7/Factory Resources | -11 -10 -10 -9 -9 -8 -7 ----------- Run | Scr Mat Min Mat Min Mat Fac Matter Collected 3868 | 277 453 5 750 296 1336 751 Remotely . | . . . . . . . Salvage Created 4960 | 94 591 . 1492 359 1648 776 Parts 312 | 5 44 . 84 26 107 46 Haulers Intercepted 8 | . 2 . 5 . 1 . Recyclers Shooed 9 | . . . 6 1 1 1 Parts Field Recycled . | . . . . . . . Retrieved Matter . | . . . . . . . Parts Self-Destructed . | . . . . . . . Prevented . | . . . . . . . Kills | -11 -10 -10 -9 -9 -8 -7 ------- Run | Scr Mat Min Mat Min Mat Fac Combat Hostiles Destroyed 95 | . 12 . 23 13 31 16 Guns 79 | . 12 . 17 7 27 16 Cannons 16 | . . . 6 6 4 . Classes Destroyed 16 | 2 5 . 1 1 3 4 Worker 2 | . 1 . . 1 . . Builder 1 | . . . . . . 1 Tunneler 2 | 1 1 . . . . . Hauler 8 | . 2 . 5 . 1 . Recycler 8 | 1 . . 4 1 1 1 Operator 1 | . . . . . 1 . Watcher 12 | . 3 . 4 . 5 . Swarmer 19 | . 3 . 3 6 7 . Grunt 47 | . 9 . 14 6 11 7 Brawler 2 | . . . . . . 2 Duelist 3 | . . . . 1 . 2 Sentry 16 | . . . 6 . 10 . Specialist 2 | . . . . . 2 . Hunter 2 | . . . . . 1 1 Programmer 2 | . . . . . . 2 Heavy 2 | . . . . . . 2 Best Kill Streak 8 | 2 3 . 7 5 8 5 Combat Bots Only 7 | . 3 . 7 4 7 4 Max Kills in Single Turn 2 | 1 1 . 1 1 2 2 Gunslinging 1 | . . . . . 1 1 Exploded . | . . . . . . . Melee . | . . . . . . . Uniques/NPCs Destroyed . | . . . . . . . Combat | -11 -10 -10 -9 -9 -8 -7 -------- Run | Scr Mat Min Mat Min Mat Fac Damage Taken 5223 | . 774 10 722 385 1663 1669 Core 593 | . 113 . 111 18 188 163 Absorbed by Shields . | . . . . . . . Core Remaining (%) 71 | 100 . 54 . 67 65 . Volleys Fired 342 | 7 68 . 96 31 104 36 Largest 4 | 2 2 . 3 3 3 4 Hottest 109 | 70 70 . 96 82 82 109 Shots Fired 947 | 14 135 . 271 93 295 139 Gun 850 | 14 135 . 230 62 270 139 Cannon 92 | . . . 41 31 20 . Launcher 5 | . . . . . 5 . Special . | . . . . . . . Kinetic 900 | 7 128 . 243 93 290 139 Thermal 42 | 7 7 . 28 . . . Explosive 5 | . . . . . 5 . Electromagnetic . | . . . . . . . Robot Hit Streak 36 | 4 13 . 17 6 36 11 Robot Miss Streak 7 | 3 4 . 4 4 4 7 Penetration Max 1 | . . . . . 1 . Secondary Targets 11 | . 2 . . . 4 5 Max Gunslinging Chain 1 | . 1 . . . 1 1 Shots Hit Robots 625 | 7 85 . 176 46 213 98 Core Hits 297 | 3 42 2 75 20 78 77 Critical Kills 2 | . . . . . 2 . Critical Parts Destroyed 3 | . . . . 1 1 1 Critical Strikes 10 | . 1 . 3 2 3 1 Burn 3 | . 1 . 2 . . . Destroy 5 | . . . . 1 3 1 Blast 2 | . . . 1 1 . . Melee Attacks 17 | . . . . . 16 1 Impact 17 | . . . . . 16 1 Slashing . | . . . . . . . Piercing . | . . . . . . . Sneak Attacks 1 | . . . . . 1 . Combat Hostiles . | . . . . . . . Follow-up Attacks . | . . . . . . . Damage Inflicted 9390 | 75 754 23 2267 839 3488 1944 Guns 7929 | 75 714 . 1645 471 3082 1942 Cannons 1136 | . . . 531 299 306 . Explosions . | . . . . . . . Melee 100 | . . . . . 100 . Ramming 225 | . 40 23 91 69 . 2 Kinetic 8675 | 49 649 . 1877 770 3388 1942 Thermal 390 | 26 65 . 299 . . . Explosive . | . . . . . . . Electromagnetic . | . . . . . . . Impact 100 | . . . . . 100 . Slashing . | . . . . . . . Piercing . | . . . . . . . Highest Corruption 4 | . . . . . . 4 Average Corruption 1 | . . . . . . 1 Corruption Purged . | . . . . . . . Effects 4 | . . . . . . 4 Message Errors 1 | . . . . . . 1 Matter Fused 1 | . . . . . . 1 Data Loss (minor) 1 | . . . . . . 1 Weapon Failures 1 | . . . . . . 1 Overload Shots . | . . . . . . . Overflow Damage 14 | . . . . 12 2 . Projectiles 14 | . . . . 12 2 . Explosions . | . . . . . . . Melee . | . . . . . . . Knockbacks 13 | . . . 5 5 3 . Impact 1 | . . . . 1 . . Kinetic 9 | . . . 3 4 2 . Secondary 3 | . . . 2 . 1 . Self-Inflicted Damage . | . . . . . . . Shots . | . . . . . . . Rammed 32 | 1 7 5 12 6 . 1 Targets Rammed 36 | 1 9 5 13 7 . 1 Kicked . | . . . . . . . Crushed 4 | . 2 . 1 1 . . Highest Temperature 383 | 90 55 . 383 207 228 181 Average Temperature 61 | 34 15 . 74 76 58 62 Received Heat Transfer 1311 | . 240 . 363 132 531 45 Effects 4 | . . . 2 . 2 . Energy Bleed 1 | . . . 1 . . . Interference 2 | . . . . . 2 . Short Circuit 1 | . . . 1 . . . Siege Activations . | . . . . . . . Robots Corrupted . | . . . . . . . Combat Hostiles . | . . . . . . . Parts Fried . | . . . . . . . Impact Corruptions . | . . . . . . . Robots Melted . | . . . . . . . Combat Hostiles . | . . . . . . . Parts Melted . | . . . . . . . Heat Transferred 1295 | 74 259 . 962 . . . Parts Sabotaged . | . . . . . . . Parts Stolen . | . . . . . . . Parts Stripped . | . . . . . . . Power Chain Reactions . | . . . . . . . Missiles Intercepted . | . . . . . . . Alert | -11 -10 -10 -9 -9 -8 -7 ------- Run | Scr Mat Min Mat Min Mat Fac Peak Influence 423 | 10 163 81 423 348 371 251 Initial 46 | . 6 . . 43 29 46 Average 110 | 2 37 21 178 177 140 64 Maximum Alert Level 2 | . . . 2 1 1 1 Low Security (%) 77 | 100 100 100 51 69 67 95 Level 1 21 | . . . 44 30 32 4 Level 2 . | . . . 4 . . . Level 3 . | . . . . . . . Level 4 . | . . . . . . . Level 5 . | . . . . . . . High Security . | . . . . . . . Max Security . | . . . . . . . Squads Dispatched 21 | . 3 . 1 . 5 12 Investigation 3 | . 1 . . . . 2 Extermination 2 | . . . . . . 2 Reinforcement 8 | . 2 . 1 . 2 3 Assault . | . . . . . . . Garrison 8 | . . . . . 3 5 Intercept . | . . . . . . . Construction Impeded . | . . . . . . . Haulers Reinforced . | . . . . . . . Active Scanning Responses . | . . . . . . . Cargo Convoy Interrupts 1 | . . . . . . 1 Stealth | -11 -10 -10 -9 -9 -8 -7 --------- Run | Scr Mat Min Mat Min Mat Fac Distress Signals 5 | . 1 . 2 . 1 1 Communications Jammed 1 | . . . . . 1 . Distress Signals . | . . . . . . . Times Spotted 154 | . 25 5 38 16 45 25 Peak Tracking Total 8 | . 4 3 7 4 8 5 Tactical Retreats 9 | . 1 . 4 3 . 1 Traps | -11 -10 -10 -9 -9 -8 -7 ------- Run | Scr Mat Min Mat Min Mat Fac Traps Triggered 3 | . 1 . . . 1 1 Indirectly . | . . . . . . . Trap Hack Attempts . | . . . . . . . Triggered . | . . . . . . . Disarmed . | . . . . . . . Reprogrammed . | . . . . . . . Reused . | . . . . . . . Traps Extracted . | . . . . . . . Installed . | . . . . . . . Triggered 1 | . . . . . . 1 Machines | -11 -10 -10 -9 -9 -8 -7 ---------- Run | Scr Mat Min Mat Min Mat Fac Machines Disabled 5 | . . . 2 2 . 1 Max in Single Turn 1 | . . . 1 1 . 1 Garrison Access 1 | . . . . . 1 . Machines Sabotaged . | . . . . . . . Garrisons Compromised 1 | . . . . . . 1 Overloaded Fab Kills . | . . . . . . . Hacking | -11 -10 -10 -9 -9 -8 -7 --------- Run | Scr Mat Min Mat Min Mat Fac Machines Accessed 35 | . 7 . 11 . 12 5 Terminals 28 | . 6 . 10 . 9 3 Fabricators 2 | . . . . . . 2 Repair Stations 3 | . 1 . 1 . 1 . Recycling Units . | . . . . . . . Scanalyzers 1 | . . . . . 1 . Garrison Access 1 | . . . . . 1 . Total Hacks 112 | . 30 . 32 . 35 15 Successful 64 | . 20 . 12 . 23 9 Failed 47 | . 9 . 20 . 12 6 Catastrophic 6 | . . . 4 . 2 . Database Lockouts 1 | . 1 . . . . . Manual 65 | . 15 . 20 . 21 9 Terminals 97 | . 24 . 31 . 31 11 Fabricators 4 | . . . . . . 4 Repair Stations 9 | . 6 . 1 . 2 . Recycling Units . | . . . . . . . Scanalyzers 1 | . . . . . 1 . Garrison Access 1 | . . . . . 1 . Terminal Hacks 39 | . 10 . 10 . 16 3 Record 1 | . 1 . . . . . Part Schematic 2 | . . . 1 . 1 . Robot Analysis 5 | . 2 . 2 . 1 . Prototype ID Bank 6 | . 1 . 2 . 3 . Branch Access Points 2 | . . . 1 . . 1 Terminal Index 2 | . . . . . 1 1 Fabricator Index 1 | . . . . . . 1 Repair Station Index 1 | . . . . . 1 . Scanalyzer Index 1 | . . . . . 1 . Unreport Threat 6 | . 1 . 2 . 3 . Locate Traps 6 | . 3 . 1 . 2 . Recall Reinforcements 1 | . . . . . 1 . Hauler Manifests 3 | . 1 . 1 . 1 . Registered Components 2 | . 1 . . . 1 . Fabricator Hacks 4 | . . . . . . 4 Load Schematic 2 | . . . . . . 2 Build 2 | . . . . . . 2 Repair Station Hacks 8 | . 6 . . . 2 . Scan Component 4 | . 3 . . . 1 . Repair 4 | . 3 . . . 1 . Recycling Unit Hacks . | . . . . . . . Scanalyzer 1 | . . . . . 1 . Insert Component 1 | . . . . . 1 . Garrison Access Hacks 1 | . . . . . 1 . Seal Access 1 | . . . . . 1 . Unauthorized Hacks 11 | . 4 . 2 . 3 2 Terminals 11 | . 4 . 2 . 3 2 Assimilate 2 | . 2 . . . . . Botnet 9 | . 2 . 2 . 3 2 Fabricators . | . . . . . . . Repair Stations . | . . . . . . . Recycling Units . | . . . . . . . Scanalyzers . | . . . . . . . Garrison Access . | . . . . . . . Data Cores Recovered 1 | . . . . . 1 . Used . | . . . . . . . Hacking Detections 31 | . 5 . 11 . 10 5 Full Trace Events 4 | . 1 . 1 . . 2 Feedback Events . | . . . . . . . Feedback Blocked . | . . . . . . . Robot Schematics Acquired . | . . . . . . . Robots Built . | . . . . . . . Authchips . | . . . . . . . Time . | . . . . . . . Total Robot Build Rating . | . . . . . . . Part Schematics Acquired 2 | . . . 1 . 1 . Parts Built 2 | . . . . . . 2 Authchips . | . . . . . . . Time 146 | . . . . . . 146 Total Part Build Rating 6 | . . . . . . 6 Parts Repaired 4 | . 3 . . . 1 . Time 104 | . 78 . . . 26 . Parts Recycled . | . . . . . . . Recycled Matter . | . . . . . . . Retrieved Matter . | . . . . . . . Retrieved Components . | . . . . . . . Parts Scanalyzed . | . . . . . . . Part Schematics Acquired . | . . . . . . . Parts Damaged . | . . . . . . . Bothacking | -11 -10 -10 -9 -9 -8 -7 ------------ Run | Scr Mat Min Mat Min Mat Fac Used RIF Installer . | . . . . . . . Robots Hacked . | . . . . . . . Non-combat . | . . . . . . . Combat . | . . . . . . . Robot Hacks Applied . | . . . . . . . Relay Couplers Released . | . . . . . . . Fabnet Peak Effective % . | . . . . . . . Robots Rewired . | . . . . . . . Allies Hacked . | . . . . . . . Hacks Repelled . | . . . . . . . Allies | -11 -10 -10 -9 -9 -8 -7 -------- Run | Scr Mat Min Mat Min Mat Fac Total Allies 5 | . 1 4 . . . . Largest Group 5 | . 1 5 4 . . . Highest-Rated Group 81 | . 10 81 50 . . . Highest-Rated Ally 31 | . 10 31 16 . . . Total Orders 2 | . . 2 . . . . STAY 1 | . . 1 . . . . FOLLOW 1 | . . 1 . . . . Ally Attacks 24 | . . 16 8 . . . Total Damage 344 | . . 224 120 . . . Kills 9 | . . 5 4 . . . Allies Corrupted . | . . . . . . . Allies Melted . | . . . . . . . Intel | -11 -10 -10 -9 -9 -8 -7 ------- Run | Scr Mat Min Mat Min Mat Fac Robot Analysis Total 5 | . 2 . 2 . 1 . Derelict Logs Recovered 3 | . . 1 . 2 . . Drone Launches . | . . . . . . . Drone Recoveries . | . . . . . . . Exploration | -11 -10 -10 -9 -9 -8 -7 ------------- Run | Scr Mat Min Mat Min Mat Fac Turns Passed 11294 | 102 1718 1011 2326 903 3324 1910 Spaces Moved 5428 | 53 859 618 1327 537 1161 873 Core 16 | 16 . . . . . . Treads 5412 | 37 859 618 1327 537 1161 873 Legs . | . . . . . . . Wheels . | . . . . . . . Hover . | . . . . . . . Flight . | . . . . . . . Fastest Speed 50 | 50 160 160 145 145 152 157 Average Speed 169 | 126 160 160 145 145 203 192 Slowest Speed 246 | 160 160 160 160 150 240 246 Overloaded Moves . | . . . . . . . Propulsion Burnouts . | . . . . . . . Robots Hopped . | . . . . . . . Cave-ins Triggered . | . . . . . . . Exploration Rate (%) 70 | 4 96 99 95 97 84 20 Regions Visited 6 Branch Regions 2 Pre-discovered Areas 2 | . . . . 2 . . Known Exits Taken 3 | . . 1 1 . 1 . Unknown Exits Taken 3 | 1 1 . . 1 . . Scrap Searched 3 | . . 2 . 1 . . Spaces Dug 30 | . . . . . 29 1 Terrain Destroyed 61 | . . . 2 3 54 2 Melee 15 | . . . . . 14 1 Projectile 6 | . . . 2 3 1 . AOE 39 | . . . . . 39 . Terrain Rammed . | . . . . . . . Walls Destroyed . | . . . . . . . Machines Disabled . | . . . . . . . Actions | -11 -10 -10 -9 -9 -8 -7 --------- Run | Scr Mat Min Mat Min Mat Fac Total 6846 | 71 1090 639 1546 587 1886 1027 Wait 765 | . 113 13 49 9 514 67 Move 5423 | 53 858 617 1326 536 1160 873 Hop . | . . . . . . . Pick Up 57 | 4 13 2 16 . 15 7 Fast Attach 18 | 7 3 . 4 . 3 1 Attach 19 | . 1 . 4 1 8 5 Detach 5 | . 2 . 2 . 1 . Swap 85 | . 12 . 14 3 36 20 Drop 80 | . 11 2 22 . 29 16 Fire 342 | 7 68 . 96 31 104 36 Melee 17 | . . . . . 16 1 Ram . | . . . . . . . Kick . | . . . . . . . Crush 35 | . 9 5 13 7 . 1 Escape Stasis . | . . . . . . . Rewire . | . . . . . . . Trap . | . . . . . . . Miscellaneous . | . . . . . . . Route ------- -11/Scrapyard -10/Materials (discovered 5 exits: *Mat x3 / [*Min x2]) -10/Mines (discovered 2 exits: *Mat x2) -9/Materials (discovered 3 exits: *Mat x2 / *Min) -9/Mines (discovered 3 exits: *Mat x2 / [*Exi]) -8/Materials (discovered 2 exits: *Fac x2) -7/Factory (discovered 4 exits: *Sto x2 / Low x2) History --------- Turn | Location | Event 6 | -11/Scrapyard | Discovered new exit (range 16) 103 | -11/Scrapyard | Entered Materials 103 | -10/Materials | Discovered new exit (range 14) 295 | -10/Materials | Discovered new exit (range 11) 303 | -10/Materials | Build established: Mutant 358 | -10/Materials | Central database locked down 586 | -10/Materials | Repaired Lgt. Assault Rifle 613 | -10/Materials | Repaired Lgt. Treads 641 | -10/Materials | Repaired Lgt. Assault Rifle 655 | -10/Materials | Discovered new exit (range 16) 898 | -10/Materials | Discovered new exit (range 7) 1253 | -10/Materials | Discovered new exit (range 15) 1821 | -10/Materials | Entered Mines 1821 | -10/Mines | Accompanied by 1 ally 1868 | -10/Mines | Received a Mining Laser from a helpful Derelict 1921 | -10/Mines | Identified exit to Materials 2007 | -10/Mines | Discovered exit to Materials (range 7) 2097 | -10/Mines | Assisted by bots powering up and referring to "LRC-V3" 2395 | -10/Mines | Build established: Commander-Mutant 2832 | -10/Mines | Entered Materials 2832 | -9/Materials | Accompanied by 4 allies 2832 | -9/Materials | Evolved 2 slots: Propulsion x1, Weapon x1 3259 | -9/Materials | Discovered new exit (range 12) 3266 | -9/Materials | Build established: Tank 3545 | -9/Materials | Destroyed 7 combat bots 4321 | -9/Materials | Identified exit to Mines 4558 | -9/Materials | Build established: Mutant 4571 | -9/Materials | Discovered new exit (range 3) 4908 | -9/Materials | Build established: Tank 4956 | -9/Materials | Discovered new exit (range 5) 5158 | -9/Materials | Entered Mines 5204 | -9/Mines | Deemed a non-threat by the Exiles lab entrance 5204 | -9/Mines | Discovered new exit (range 5) 5469 | -9/Mines | Discovered new exit (range 5) 5491 | -9/Mines | Discovered new exit (range 5) 5495 | -9/Mines | Learned Materials emergency access door positions 5552 | -9/Mines | Learned location of Zion (-6) 5705 | -9/Mines | Learned location of Storage (-7) 6061 | -9/Mines | Entered Materials 6061 | -8/Materials | Evolved 2 slots: Propulsion x1, Utility x1 6163 | -8/Materials | Destroyed 7 combat bots 6511 | -8/Materials | Build established: Scavenger-Gunner 6668 | -8/Materials | Discovered new exit (range 4) 7008 | -8/Materials | Repaired Huge Storage Unit 8348 | -8/Materials | Discovered new exit (range 12) 8370 | -8/Materials | Build established: Scavenger-Tank 8427 | -8/Materials | Garrison activated, responded to threat 8492 | -8/Materials | Destroyed 7 combat bots 9383 | -8/Materials | Identified exit to Factory 9385 | -8/Materials | Entered Factory 9385 | -7/Factory | Evolved 2 slots: Propulsion x1, Weapon x1 9466 | -7/Factory | Discovered new exit (range 10) 9675 | -7/Factory | Build established: Scavenger-Skirmisher 10400 | -7/Factory | Build established: Scavenger-Tank 10414 | -7/Factory | Identified exit to Storage 10414 | -7/Factory | Identified exit to Lower Caves 10731 | -7/Factory | Fabricated Arm. Treads? 10816 | -7/Factory | Garrison activated, responded to threat 11024 | -7/Factory | Build established: Tank 11102 | -7/Factory | Cargo convoy interrupted 11165 | -7/Factory | Garrison activated, responded to threat 11295 | -7/Factory | Self-destructed Last Messages --------------- 11221_ Acquired 63 matter. 11222_ K-01 Serf collects debris. 11223_ Penetrated by Slug. 11223_ U-05 Engineer destroyed. 11224_ Acquired 13 matter. 11225_ K-01 Serf collects debris. 11226_ Penetrated by Slug. 11226_ System corrupted: Flak Gun jammed. 11227_ K-01 Serf collects debris. 11229_ Penetrated by Slug. 11229_ K-01 Serf collects debris. 11229_ H-55 Commando destroyed. 11230_ Acquired 45 matter. 11230_ K-01 Serf collects debris. 11233_ Acquired 48 matter. 11234_ K-01 Serf collects debris. 11254_ System corrupted: Component data lost. 11263_ U-05 Engineer builds a Wall. 11275_ K-01 Serf cleans the Subcomponent Replicator. 11295_ K-01 Serf knocked back. Map ----- +----------------------------------------------------+ | # """ """ ## | | # """ """ * #? | | # ! ! !% #? | | ### #### """ / ######+####+## | | ??#+###### """ ## %%/%%% # | | ??# # """ ######### ## %% ""# | | ??# ! # #???????# ## """""" ! "# | | ??# = = + #???????# ## """""""!" # | | ??# "F"" # #???????# ## """""*"!%=# | | ??# """" # #???????#%## """"!" !!# | | ??# ##################???????# ## %%*[!!!! # | | ??########???????????????????#?####+############## | | ????????????????????????????? # ###??# | | ???????????????????????????? # #????# | | ???????????????????????????? l #????# | | ??????????????????# ??????? # #????# | | ??????????????????# """"" !c # #????# | | ??????????????????# # #????# | | ??????????????????# """ ""# #????# | | ??????????????????+ """"" ""# #????# | | ??????????????????# """"" G# #????# | | ???????????????????? ""# #????# | | ????????????????????? "?# #????# | | ?????????????????????? ??# #????# | | ?????????????????####### ###########+########### | | ??????????????# @ ]]= | | ??????????????# k ]]= | | ??????????????+ "" "" "" "" ]!= | | ??????????????# "" "" "" "" | | ??????????????# """ """ """ """ | | ??????????????## """ """ """ """ | | ???????????????# """ """ """ """ | | ???????????????# ]! | | ???????????????# ]! | | ???????????????# ]! | | ???????????????####### | | ?????????????????????# | | ???????????????????########## ######### | | ???????????????????# ?# #???????# | | ???????????????????#""" ?# #???????# | | ???????????????????#""" # #???????# | | ???????????????????#""" # #???????# | | ???????????????????# + #???????# | | ???????????????????#""" # #???????# | | ???????????????????#""" # ###+########???# | | ???????????????????#""" ?# # #???# | | ???????????????????+ ?####### ! """ #???# | | ???????????????????#######????????# Y" ##### | | ??????????????????????????????????# """ + | | ??????????????????????????????????# # | +----------------------------------------------------+ Best States ------------- Heat Dissipation 53 Energy Generation 16 Energy Capacity 290 Matter Stores 300 Matter Capacity 300 Sight Range 16 Robot Scan Range 15 Terrain Scan Range 16 Terrain Scan Density 10 Jamming Range 8 Armor Coverage 225 Core Shielding 20 Evasion (%) 50 Targeting Accuracy 8 Recoil Reduction 5 Item Schematics ----------------- Cargo Storage Unit | -9/Materials | Hacked Arm. Treads | -8/Materials | Hacked Robot Schematics ------------------ None Fabricated ------------ Arm. Treads | x2 | -7/Factory Alien Tech Used ----------------- None Achievements -------------- None Challenges ------------ None Game ------ Seed SalvageRiotDiverter Manual? 0 Play Time 01:04:59 Cumulative 316.4 hours Start 2022.02.02 @ 00:04:51 End 2022.02.02 @ 02:48:18 Sessions 3 Manual Loads 0 Difficulty Rogue Special Mode None Game No. 125 Rogue 125 Adventurer 0 Explorer 0 Win Type - Total 6 Types 1/2/1/0/0/2/0/0/0 Lore% 59 Gallery% 62 Achievement% 59 Wizard Run 0 Options --------- ASCII 0 Keyboard 1 Movement Vi Keybinds 0 Fullscreen 2 Font 12/Smallcaps Map View 60x54 Tactical HUD 1 Map Filters NONE Filters NONE Steam 1 RUN: 32d76afc-ad25-4e8b-b5e1-49571c25a7ed